Cogmind - Beta 13 @@@ ROGUE MODE // 2024.04.01 @ 20:56:36 Player: SnaveSutit Result: Self-destructed Performance ------------- Evolutions (2) 1000 Regions Visited (3) 600 Robots Destroyed (30) 150 Value Destroyed (901) 901 Prototype IDs (0) 0 Alien Tech Used (0) 0 Bonus (73) 73 TOTAL SCORE: 2724 Bonus ------- High Alert Combat Kills 73 Cogmind --------- Core Integrity 536/550 Matter 12/300 Energy 65/100 System Corruption 0% Temperature Cool (0) Movement Treading (240) Ox1 Location -8/Materials Parts ------- > --- POWER (1) -------- (None) > --- PROPULSION (2) --- Light Treads > --- UTILITY (6) ------ Cooling System Large Storage Unit Signal Interpreter > --- WEAPON (2) ------- Assault Rifle > --- INVENTORY (15) --- Light Nuclear Core Light Treads Light Treads Light Treads Light Treads Heat Sink Structural Scanner Beam Rifle Peak State ------------ > --- POWER ------------ Light Nuclear Core > --- PROPULSION ------- Light Treads Light Treads > --- UTILITY ---------- Cooling System Large Storage Unit Signal Interpreter Light Armor Plating > --- WEAPON ----------- Assault Rifle Rocket Launcher > --- INVENTORY -------- Light Treads Light Treads Light Treads Light Treads Heat Sink Structural Scanner Grenade Launcher [Rating: 13] Favorites ----------- Power Ion Engine Engine Ion Engine Power Core Light Nuclear Core Propulsion Light Treads Treads Light Treads Utility Signal Interpreter Device Heat Sink Storage Large Storage Unit Processor Signal Interpreter Protection Light Armor Plating Weapon Assault Rifle Ballistic Gun Assault Rifle Launcher Rocket Launcher Build | -11 -10 -9 -8 ------- Run | Yrd Mat Mat Mat Slots Evolved 4 | . . 2 2 Power . | . . . . Propulsion . | . . . . Utility 4 | . . 2 2 Weapon . | . . . . Parts Attached 22 | 6 5 10 1 Power 3 | 1 . 2 . Engine 2 | 1 . 1 . Core 1 | . . 1 . Reactor . | . . . . Propulsion 3 | 2 . 1 . Treads 3 | 2 . 1 . Leg . | . . . . Wheel . | . . . . Hover . | . . . . Flight . | . . . . Utility 7 | 1 3 3 . Device 3 | . 1 2 . Storage 2 | 1 1 . . Processor 1 | . 1 . . Hackware . | . . . . Protection 1 | . . 1 . Artifact . | . . . . Weapon 9 | 2 2 4 1 Energy Gun . | . . . . Energy Cannon . | . . . . Ballistic Gun 4 | 2 1 1 . Ballistic Cannon . | . . . . Launcher 5 | . 1 3 1 Special Weapon . | . . . . Impact Weapon . | . . . . Slashing Weapon . | . . . . Piercing Weapon . | . . . . Special Melee Weapon . | . . . . Unidentified Prototypes . | . . . . Parts Lost 7 | . . 4 3 Power 2 | . . 2 . Propulsion 1 | . . . 1 Utility 1 | . . . 1 Weapon 3 | . . 2 1 Highest Loss Streak 3 | . . 1 3 To Critical Strikes . | . . . . Average Slot Usage (%) 94 | . 99 90 63 Engine 8 | . 14 1 . Core 1 | . . 4 . Treads 25 | . 28 22 18 Device 4 | . 1 9 9 Storage 11 | . 12 11 9 Processor 12 | . 13 11 9 Protection 3 | . . 9 5 Ballistic Gun 19 | . 23 13 9 Launcher 5 | . 4 8 3 Naked Turns . | . . . . Heaviest Build 36 | 14 29 36 27 Greatest Support 40 | 40 40 40 40 Greatest Overweight (x) . | . . . . Average Overweight (x) . | . . . . Largest Inventory Capacity 15 | 8 15 15 15 Average Capacity 12 | 6 10 15 15 Most Carried 9 | 5 7 9 9 Average Carried 4 | 1 3 6 8 Final Capacity 15 | 8 15 15 15 Final Carried 9 | . 7 9 8 Class Distribution -------------------- 100% | Mutant Dominant Class ---------------- Mutant | -10/Materials Mutant | -9/Materials Mutant | -8/Materials Resources | -11 -10 -9 -8 ----------- Run | Yrd Mat Mat Mat Matter Collected 572 | 135 309 128 . Remotely . | . . . . Salvage Created 816 | . 235 581 . Parts 62 | . 22 40 . Haulers Intercepted . | . . . . Recyclers Shooed 1 | . . 1 . Parts Field Recycled . | . . . . Retrieved Matter . | . . . . Parts Self-Destructed . | . . . . Prevented . | . . . . Kills | -11 -10 -9 -8 ------- Run | Yrd Mat Mat Mat Combat Hostiles Destroyed 25 | . 9 16 . Guns 12 | . 7 5 . AOE 13 | . 2 11 . Classes Destroyed 5 | . 2 3 . Builder 4 | . . 4 . Recycler 1 | . . 1 . Swarmer 5 | . 5 . . Grunt 17 | . 4 13 . Sentry 3 | . . 3 . Best Kill Streak 10 | . 3 10 . Combat Bots Only 5 | . 3 5 . Max Kills in Single Turn 3 | . 2 3 . Gunslinging . | . . . . Exploded 2 | . 2 2 . Melee . | . . . . Uniques/NPCs Destroyed . | . . . . Combat | -11 -10 -9 -8 -------- Run | Yrd Mat Mat Mat Hostile Shots Fired 134 | . 58 58 18 Missed 52 | . 21 24 7 Damage Taken 1051 | . 357 509 185 Core 167 | . 50 103 14 Absorbed by Shields . | . . . . Core Remaining (%) 84 | 100 80 74 . Volleys Fired 75 | . 41 31 3 Largest 2 | . 2 2 1 Hottest 53 | . 50 53 20 Shots Fired 114 | . 56 55 3 Gun 97 | . 55 39 3 Cannon . | . . . . Launcher 17 | . 1 16 . Special . | . . . . Kinetic 97 | . 55 39 3 Thermal . | . . . . Explosive 17 | . 1 16 . Electromagnetic . | . . . . Robot Hit Streak 7 | . 6 7 1 Robot Miss Streak 3 | . 3 2 1 Penetration Max . | . . . . Secondary Targets 1 | . 1 . . Max Gunslinging Chain 1 | . 1 . . Shots Hit Robots 63 | . 31 31 1 Core Hits 50 | . 16 34 . Critical Kills . | . . . . Critical Parts Destroyed 2 | . . 2 . Critical Strikes 2 | . . 2 . Destroy 2 | . . 2 . Melee Attacks . | . . . . Impact . | . . . . Slashing . | . . . . Piercing . | . . . . Sneak Attacks . | . . . . Combat Hostiles . | . . . . Follow-up Attacks . | . . . . Damage Inflicted 2230 | . 535 1684 11 Guns 731 | . 420 300 11 Cannons . | . . . . Explosions 1499 | . 115 1384 . Melee . | . . . . Ramming . | . . . . Kinetic 731 | . 420 300 11 Thermal 499 | . . 499 . Explosive 1000 | . 115 885 . Electromagnetic . | . . . . Impact . | . . . . Slashing . | . . . . Piercing . | . . . . Highest Corruption 2 | . 2 . . Average Corruption 2 | . 2 . . Corruption Purged . | . . . . Corruption Blocked . | . . . . Effects 3 | . 3 . . Message Errors 1 | . 1 . . Heat Flow Errors 1 | . 1 . . Data Loss (minor) 1 | . 1 . . Overload Shots . | . . . . Overflow Damage 115 | . 1 114 . Projectiles . | . . . . Explosions 115 | . 1 114 . Melee . | . . . . Knockbacks . | . . . . Impact . | . . . . Kinetic . | . . . . Secondary . | . . . . Self-Inflicted Damage 32 | . . 32 . Shots 2 | . . 2 . Rammed 1 | . . 1 . Targets Rammed 1 | . . 1 . Kicked . | . . . . Crushed . | . . . . Highest Temperature 91 | . 91 22 . Average Temperature 23 | . 26 13 . Received Heat Transfer 435 | . 126 210 99 Siege Activations . | . . . . Robots Corrupted . | . . . . Combat Hostiles . | . . . . Parts Fried . | . . . . Impact Corruptions . | . . . . Robots Melted . | . . . . Combat Hostiles . | . . . . Parts Melted 1 | . . 1 . Heat Transferred 350 | . . 350 . Parts Sabotaged . | . . . . Parts Stolen . | . . . . Parts Stripped . | . . . . Power Chain Reactions . | . . . . Alert | -11 -10 -9 -8 ------- Run | Yrd Mat Mat Mat Peak Influence 599 | . 194 599 170 Initial 170 | . . 7 170 Average 135 | . 58 276 165 Maximum Alert Level 2 | . . 2 . Low Security (%) 83 | 100 100 51 100 Level 1 4 | . . 12 . Level 2 12 | . . 35 . Level 3 . | . . . . Level 4 . | . . . . Level 5 . | . . . . High Security . | . . . . Max Security . | . . . . Squads Dispatched 4 | . 1 2 1 Investigation 1 | . . 1 . Extermination . | . . . . Reinforcement 3 | . 1 1 1 Assault . | . . . . Garrison . | . . . . Intercept . | . . . . Searches Triggered . | . . . . Construction Impeded . | . . . . Haulers Reinforced . | . . . . Active Scanning Responses . | . . . . Cargo Convoy Interrupts . | . . . . Stealth | -11 -10 -9 -8 --------- Run | Yrd Mat Mat Mat Distress Signals 1 | . 1 . . Communications Jammed . | . . . . Distress Signals . | . . . . Times Spotted 42 | . 13 21 8 Peak Tracking Total 7 | . 3 6 7 Tactical Retreats . | . . . . Traps | -11 -10 -9 -8 ------- Run | Yrd Mat Mat Mat Traps Triggered 1 | . 1 . . Indirectly . | . . . . Trap Hack Attempts . | . . . . Triggered . | . . . . Disarmed . | . . . . Reprogrammed . | . . . . Reused . | . . . . Traps Extracted . | . . . . Installed . | . . . . Triggered . | . . . . Machines | -11 -10 -9 -8 ---------- Run | Yrd Mat Mat Mat Machines Disabled 6 | . . 6 . Max in Single Turn 3 | . . 3 . Machines Repaired . | . . . . Machines Dismantled . | . . . . Machines Sabotaged . | . . . . Overloaded Fab Kills . | . . . . Hacking | -11 -10 -9 -8 --------- Run | Yrd Mat Mat Mat Machines Accessed 5 | . 2 2 1 Terminals 5 | . 2 2 1 Fabricators . | . . . . Repair Stations . | . . . . Recycling Units . | . . . . Scanalyzers . | . . . . Garrison Access . | . . . . Total Hacks 9 | . 3 4 2 Successful 5 | . 2 2 1 Failed 4 | . 1 2 1 Catastrophic 1 | . 1 . . Database Lockouts . | . . . . Manual . | . . . . Terminals 9 | . 3 4 2 Fabricators . | . . . . Repair Stations . | . . . . Recycling Units . | . . . . Scanalyzers . | . . . . Garrison Access . | . . . . Terminal Hacks 5 | . 2 2 1 Record 2 | . 2 . . Investigation Status 1 | . . . 1 Recall Reinforcements 1 | . . 1 . Zone Layout 1 | . . 1 . Fabricator Hacks . | . . . . Repair Station Hacks . | . . . . Recycling Unit Hacks . | . . . . Scanalyzer . | . . . . Garrison Access Hacks . | . . . . Unauthorized Hacks . | . . . . Terminals . | . . . . Fabricators . | . . . . Repair Stations . | . . . . Recycling Units . | . . . . Scanalyzers . | . . . . Garrison Access . | . . . . Data Cores Recovered . | . . . . Used . | . . . . Hacking Detections 3 | . 1 1 1 Full Trace Events 1 | . . 1 . Feedback Events . | . . . . Feedback Blocked . | . . . . Robot Schematics Acquired . | . . . . Robots Built . | . . . . Authchips . | . . . . Time . | . . . . Total Robot Build Rating . | . . . . Part Schematics Acquired . | . . . . Parts Built . | . . . . Authchips . | . . . . Time . | . . . . Total Part Build Rating . | . . . . Parts Repaired . | . . . . Time . | . . . . Parts Recycled . | . . . . Recycled Matter . | . . . . Retrieved Matter . | . . . . Retrieved Components . | . . . . Parts Scanalyzed . | . . . . Part Schematics Acquired . | . . . . Parts Damaged . | . . . . Bothacking | -11 -10 -9 -8 ------------ Run | Yrd Mat Mat Mat Used RIF Installer . | . . . . Robots Hacked . | . . . . Non-combat . | . . . . Combat . | . . . . Robot Hacks Applied . | . . . . Relay Couplers Released . | . . . . Fabnet Peak Effective % . | . . . . Robots Rewired . | . . . . Allies Hacked . | . . . . Hacks Repelled . | . . . . Allies | -11 -10 -9 -8 -------- Run | Yrd Mat Mat Mat Total Allies . | . . . . Largest Group . | . . . . Highest-Rated Group . | . . . . Highest-Rated Ally . | . . . . Total Orders . | . . . . Ally Attacks . | . . . . Total Damage . | . . . . Kills . | . . . . Allies Corrupted . | . . . . Allies Melted . | . . . . Intel | -11 -10 -9 -8 ------- Run | Yrd Mat Mat Mat Robot Analysis Total . | . . . . Derelict Logs Recovered . | . . . . Drone Launches . | . . . . Drone Recoveries . | . . . . Exploration | -11 -10 -9 -8 ------------- Run | Yrd Mat Mat Mat Turns Passed 1423 | 42 830 485 66 Spaces Moved 562 | 30 279 217 36 Core 15 | 15 . . . Treads 547 | 15 279 217 36 Legs . | . . . . Wheels . | . . . . Hover . | . . . . Flight . | . . . . Fastest Speed 50 | 50 160 160 160 Average Speed 157 | 105 160 160 160 Slowest Speed 160 | 160 160 160 160 Overloaded Moves . | . . . . Propulsion Burnouts . | . . . . Robots Hopped . | . . . . Cave-ins Triggered . | . . . . Exploration Rate (%) 26 | 4 56 36 8 Regions Visited 3 Branch Regions . Pre-discovered Areas . | . . . . Known Exits Taken 2 | . 1 1 . Unknown Exits Taken 1 | 1 . . . Scrap Searched . | . . . . Spaces Dug 3 | . . 3 . Terrain Destroyed 122 | . 11 111 . Melee . | . . . . Projectile . | . . . . AOE 122 | . 11 111 . Terrain Rammed . | . . . . Walls Destroyed . | . . . . Machines Disabled . | . . . . Actions | -11 -10 -9 -8 --------- Run | Yrd Mat Mat Mat Total 985 | 40 605 299 41 Wait 301 | . 271 29 1 Move 559 | 29 278 216 36 Hop . | . . . . Pick Up 22 | 5 9 8 . Fast Attach 1 | 1 . . . Attach 13 | 5 1 6 1 Detach 2 | . . 2 . Swap 8 | . 4 4 . Drop 3 | . 1 2 . Fire 75 | . 41 31 3 Melee . | . . . . Ram . | . . . . Kick . | . . . . Crush 1 | . . 1 . Escape Stasis . | . . . . Rewire . | . . . . Trap . | . . . . Miscellaneous . | . . . . Route ------- -11/Scrapyard -10/Materials (discovered 2 exits: *Mat / [*Min]) -9/Materials (discovered 2 exits: *Mat / [*Min]) -8/Materials History --------- Turn | Location | Event 4 | -11/Scrapyard | Discovered new exit (range 15) 43 | -11/Scrapyard | Entered Materials 315 | -10/Materials | Build established: Mutant 477 | -10/Materials | Discovered new exit (range 11) 816 | -10/Materials | Discovered new exit (range 13) 871 | -10/Materials | Identified exit to Materials 873 | -10/Materials | Entered another Materials area 873 | -9/Materials | Evolved 2 slots: Utility x2 951 | -9/Materials | Discovered new exit (range 16) 1335 | -9/Materials | Discovered new exit (range 8) 1354 | -9/Materials | Identified exit to Materials 1358 | -9/Materials | Entered another Materials area 1358 | -8/Materials | Evolved 2 slots: Utility x2 1424 | -8/Materials | Self-destructed Last Messages --------------- PARAMETERS=UTILITY+2 LOCATION=MATERIALS GOAL=ESCAPE Connecting with Terminal... >>Enumerate(Investigations) Retrieving latest reported positions... No active investigation squads found. O-16 Technician uses terminal to summon reinforcements. ALERT: Hostiles spotted, dispatching reinforcements to Terminal M009. O-16 Technician locks terminal. K-01 Serf collects debris. Lgt. Armor Plating destroyed. K-01 Serf collects debris. Atomic Centrifuge disabled. K-01 Serf collects debris. Grenade Launcher destroyed. Lgt. Treads destroyed. K-01 Serf collects debris. Map ----- +----------------------------------------------------+ | ?????????????????????????????????+ #???????????? | | ?????????????????????????????????# #???????????? | | ?????????????????????????????????# #???????????? | | ?????????????????????????????????# #???????????? | | ?????????????????????????????????# #???????????? | | ?????????????????????????????????# #???????????? | | ?????????????????????????????????# #???????????? | | ?????????????????????????????????# +???????????? | | ?????????????????????????????????# #???????????? | | ??????????????????????#########??# #???????????? | | ??????????????????????# ?## ##??????????? | | ??????????????????????# # ########???? | | ??????????????????????# # #???? | | ??????????????????????# + T #???? | | ??????????????????????# # #???? | | ??????????????????????# """ """ # ###+####???? | | ??????????????????????? """ """?## ## ?????? | | ????????????????????????""" """??# ## ???? | | ?????????????????????????#####???# ## ! ! ?? | | ?????????????????????????????????# ## #? | | ?????????????????????????????????# ## """ """ #? | | ????????????????????????########## ## """ """ #? | | ????????????????????????# """ # ## """ """ #? | | ????????????????????????# "R" # ## ? #? | | ????????????????????????# " " # #########???? | | ????????????????????????#@ gk # #???????????? | | ????????????????????????# gg + #???????????? | | ????????????????????????# """ # #???????????? | | ????????????????????????#g"" # #???????????? | | ????????????????????????#g""" # #???????????? | | ????????????????????????# g # #???????????? | | ????????????????????????########## #???????????? | | ?????????????????????????????????# #???????????? | | ?????????????????????????????????# #???????????? | | ?????????????????????????????????? #???????????? | | ?????????????????????????????????? #???????????? | | ?????????????????????????????????? #???????????? | | ?????????????????????????????????? #???????????? | | ?????????????????????????????????? #???????????? | | ?????????????????????????????????? #???????????? | | ?????????????????????????????????? ????????????? | | ?????????????????????????????????????????????????? | | ?????????????????????????????????????????????????? | | ?????????????????????????????????????????????????? | | ?????????????????????????????????????????????????? | | ?????????????????????????????????????????????????? | | ?????????????????????????????????????????????????? | | ?????????????????????????????????????????????????? | | ?????????????????????????????????????????????????? | | ?????????????????????????????????????????????????? | +----------------------------------------------------+ Best States ------------- Heat Dissipation 53 Energy Generation 14 Energy Capacity 250 Matter Stores 259 Matter Capacity 300 Sight Range 16 Terrain Scan Density 10 Armor Coverage 150 Evasion (%) 50 Recoil Reduction 2 Item Schematics ----------------- None Robot Schematics ------------------ None Fabricated ------------ Nothing Alien Tech Used ----------------- None Achievements -------------- GoHome() Challenges ------------ None Game ------ Seed GuidedImprinterLoader Manual? 0 Play Time 00:14:37 Cumulative 5.6 hours Start 2024.04.01 @ 20:42:07 End 2024.04.01 @ 20:56:36 Sessions 1 Manual Loads 0 Difficulty Rogue Special Mode None Game No. 8 Rogue 8 Adventurer 0 Explorer 0 Win Type - Total 0 Types 0/0/0/0/0/0/0/0/0 Lore% 11 Gallery% 12 Achievement% 12 Wizard Run 0 Options --------- Layout 1 ASCII 0 Keyboard 0 Movement Mouse Keybinds 0 Fullscreen 2 Font 24/Smallcaps Map View 50x35 Zoom Use 0% Tactical HUD 0 Map Filters NONE Filters NONE Steam 1 RUN: 84f35804-fb0a-4e30-96a7-b534f27a1b29